Cogmind - Beta 16 @@@ ROGUE MODE // 2025.12.07 @ 20:06:50 Player: AngelSpirit Result: Destroyed by 1T-PB4(R) with Subdweller Laser Performance ------------- Evolutions (0) 0 Regions Visited (2) 400 Robots Destroyed (35) 175 Value Destroyed (844) 844 Prototype IDs (0) 0 Alien Tech Used (0) 0 Bonus (0) 0 TOTAL SCORE: 1419 Bonus ------- None Cogmind --------- Core Integrity 0/250 Matter 260/300 Energy 100/100 System Corruption 0% Temperature Cool (6) Movement Rolling (130) Ox2 Location -10/Subcaves Parts ------- > --- POWER (1) -------- (None) > --- PROPULSION (2) --- Subdweller Monowheel Subdweller Monowheel > --- UTILITY (2) ------ Huge Storage Unit Terrain Scanner > --- WEAPON (2) ------- Battle Cannon Battle Cannon > --- INVENTORY (25) --- Ion Engine Subdweller Power Source Cargo Legs Wheel Wheel Wheel Compact Wheel Cooling System Cooling System Cooling System Medium Matter Pod (72) Makeshift Kinetic Plating Scrap Shield Makeshift System Shield Makeshift System Restoration Module Riot Gun Subdweller Beam Cannon Subdweller Beam Cannon Subdweller Machine Gun Subdweller Machine Gun Subdweller Shrapnel Launcher Shrapnel Trap Shrapnel Trap Peak State ------------ > --- POWER ------------ Ion Engine > --- PROPULSION ------- Subdweller Monowheel Subdweller Monowheel > --- UTILITY ---------- Huge Storage Unit Terrain Scanner > --- WEAPON ----------- Battle Cannon Battle Cannon > --- INVENTORY -------- Ion Engine Subdweller Power Source Cargo Legs Wheel Wheel Wheel Compact Wheel Cooling System Cooling System Cooling System Medium Matter Pod Makeshift Kinetic Plating Scrap Shield Makeshift System Shield Makeshift System Restoration Module Riot Gun Subdweller Beam Cannon Subdweller Beam Cannon Subdweller Machine Gun Subdweller Machine Gun Subdweller Shrapnel Launcher Shrapnel Trap Shrapnel Trap [Rating: 17] Favorites ----------- Power Ion Engine Engine Ion Engine Propulsion Subdweller Monowheel Wheel Subdweller Monowheel Utility Huge Storage Unit Device Terrain Scanner Storage Huge Storage Unit Weapon Battle Cannon Energy Gun EM Pulse Gun Ballistic Gun Shotgun Ballistic Cannon Battle Cannon Launcher Grenade Launcher Build | -11 -10 -10 ------- Run | Yrd Mat Sub Slots Evolved . | . . . Power . | . . . Propulsion . | . . . Utility . | . . . Weapon . | . . . Parts Attached 28 | 6 12 10 Power 4 | 1 1 2 Engine 4 | 1 1 2 Core . | . . . Reactor . | . . . Propulsion 8 | 2 2 4 Treads . | . . . Leg . | . . . Wheel 8 | 2 2 4 Hover . | . . . Flight . | . . . Utility 4 | 1 3 . Device 1 | . 1 . Storage 3 | 1 2 . Processor . | . . . Hackware . | . . . Protection . | . . . Artifact . | . . . Weapon 12 | 2 6 4 Energy Gun 1 | 1 . . Energy Cannon . | . . . Ballistic Gun 8 | 1 5 2 Ballistic Cannon 2 | . . 2 Launcher 1 | . 1 . Special Weapon . | . . . Impact Weapon . | . . . Slashing Weapon . | . . . Piercing Weapon . | . . . Special Melee Weapon . | . . . Unidentified Prototypes . | . . . Parts Lost 6 | . 1 5 Power 3 | . . 3 Propulsion 2 | . 1 1 Utility . | . . . Weapon 1 | . . 1 Highest Loss Streak 3 | . 1 3 To Critical Strikes . | . . . Average Backups 17 | . 11 21 Power 1 | . 1 2 Propulsion 3 | . . 5 Utility 6 | . 5 7 Weapon 5 | . 3 6 Tool/Special . | . . . Unused Backups 27 | . 1 26 Power 2 | . . 2 Propulsion 7 | . . 7 Utility 11 | . . 11 Weapon 7 | . 1 6 Tool/Special . | . . . Average Slot Usage (%) 95 | . 88 99 Engine 13 | . 14 13 Wheel 27 | . 26 27 Device 10 | . 5 14 Storage 14 | . 14 14 Ballistic Gun 14 | . 27 5 Ballistic Cannon 12 | . . 21 Peak Build Rating 17 | 6 12 17 Average Rating 12 | 4 9 14 On Entrance 6 | . 6 12 Avg Prop Armor Cover (%) . | . . . Naked Turns . | . . . Heaviest Build 93 | 14 91 93 Greatest Support 40 | 26 26 40 Greatest Overweight (x) 8 | . 8 4 Average Overweight (x) 2 | . 2 2 Largest Inventory Capacity 25 | 8 25 25 Average Capacity 23 | 7 22 25 Most Carried 25 | . 19 25 Average Carried 18 | . 11 24 Final Capacity 25 | 8 25 25 Final Carried 25 | . 19 25 Class Distribution -------------------- 85% | Mutant 14% | Scavenger-Mutant Dominant Class ---------------- Mutant | -10/Materials Mutant | -10/Subcaves Resources | -11 -10 -10 ----------- Run | Yrd Mat Sub Matter Collected 1470 | 216 607 647 Remotely . | . . . Salvage Created 760 | . 488 272 Parts 64 | . 39 25 Haulers Intercepted 1 | . 1 . Recyclers Shooed 1 | . 1 . Parts Field Recycled . | . . . Retrieved Matter . | . . . Parts Self-Destructed 2 | . . 2 Prevented . | . . . Parts Restored . | . . . Kills | -11 -10 -10 ------- Run | Yrd Mat Sub Combat Hostiles Destroyed 25 | . 13 12 Guns 10 | . 7 3 Cannons 5 | . . 5 AOE 10 | . 6 4 Classes Destroyed 8 | . 7 1 Worker 1 | . 1 . Builder 4 | . 4 . Hauler 1 | . 1 . Recycler 1 | . 1 . Watcher 3 | . 3 . Swarmer 7 | . 7 . Grunt 6 | . 6 . Subdweller 12 | . . 12 Best Kill Streak 7 | . 7 2 Combat Bots Only 3 | . 3 2 Max Kills in Single Turn 3 | . 3 1 Gunslinging . | . . . Exploded 3 | . 3 1 Melee . | . . . Uniques/NPCs Destroyed . | . . . Combat | -11 -10 -10 -------- Run | Yrd Mat Sub Hostile Shots Fired 85 | . 48 37 Missed 20 | . 7 13 Hits 65 | . 41 24 Projectile 65 | . 41 24 Damage Taken 1027 | . 451 576 Core 261 | . 112 149 Absorbed by Shields . | . . . Core Remaining (%) 100 | 100 . . Volleys Fired 87 | . 45 42 Largest 2 | . 2 2 Hottest 66 | . 53 66 Shots Fired 164 | . 82 82 Gun 86 | . 73 13 Cannon 58 | . . 58 Launcher 20 | . 9 11 Special . | . . . Kinetic 144 | . 73 71 Thermal . | . . . Explosive 20 | . 9 11 Electromagnetic . | . . . Robot Hit Streak 19 | . 6 19 Robot Miss Streak 7 | . 7 2 Penetration Max . | . . . Secondary Targets 2 | . 2 . Max Gunslinging Chain 1 | . 1 . Shots Hit Robots 84 | . 45 39 Core Hits 64 | . 42 22 Critical Kills . | . . . Critical Parts Destroyed . | . . . Critical Strikes 1 | . . 1 Blast 1 | . . 1 Melee Attacks . | . . . Impact . | . . . Slashing . | . . . Piercing . | . . . Sneak Attacks . | . . . Combat Hostiles . | . . . Follow-up Attacks . | . . . Damage Inflicted 2435 | . 1146 1289 Guns 927 | . 702 225 Cannons 379 | . . 379 Explosions 1129 | . 444 685 Melee . | . . . Ramming . | . . . Kinetic 1306 | . 702 604 Thermal . | . . . Explosive 1129 | . 444 685 Electromagnetic . | . . . Impact . | . . . Slashing . | . . . Piercing . | . . . Highest Corruption . | . . . Average Corruption . | . . . Corruption Purged . | . . . Corruption Blocked . | . . . Overload Shots . | . . . Overflow Damage 6 | . 6 . Projectiles . | . . . Explosions 6 | . 6 . Melee . | . . . Knockbacks 1 | . . 1 Impact . | . . . Kinetic 1 | . . 1 Secondary . | . . . Self-Inflicted Damage 24 | . 24 . Shots 1 | . 1 . Rammed . | . . . Targets Rammed . | . . . Kicked . | . . . Crushed . | . . . Highest Temperature 4 | . 4 . Average Temperature 1 | . 1 . Received Heat Transfer 246 | . 144 102 Siege Activations . | . . . Martial Activations . | . . . Shielding Activations . | . . . Robots Disrupted . | . . . Combat Hostiles . | . . . Robots Corrupted . | . . . Combat Hostiles . | . . . Parts Fried . | . . . Impact Corruptions . | . . . Robots Melted . | . . . Combat Hostiles . | . . . Parts Melted . | . . . Heat Transferred . | . . . Parts Sabotaged . | . . . Parts Stolen . | . . . Parts Stripped . | . . . Power Chain Reactions . | . . . Alert | -11 -10 -10 ------- Run | Yrd Mat Sub Maximum Alert Level . | . . . Low Security (%) 100 | 100 100 . Level 1 . | . . . Level 2 . | . . . Level 3 . | . . . Level 4 . | . . . Level 5 . | . . . High Security . | . . . Max Security . | . . . Peak Influence 178 | . 178 . Initial . | . . . Average 77 | . 81 . Influence Increases 404 | . 404 . Destroy 0b10 Robot/C 260 | . 260 . Destroy 0b10 Robot/NC 50 | . 50 . Destroy Leader 48 | . 48 . Successful Hack 17 | . 17 . Destroy Structure 29 | . 29 . Influence Decreases 404 | . 366 38 Entered New Map 19 | . . 19 Time Decay 375 | . 356 19 Lost Part 10 | . 10 . Squads Dispatched 1 | . 1 . Investigation 1 | . 1 . Extermination . | . . . Reinforcement . | . . . Assault . | . . . Garrison . | . . . Intercept . | . . . Searches Triggered . | . . . Construction Impeded . | . . . Haulers Reinforced . | . . . Active Scanning Responses . | . . . Cargo Convoy Interrupts . | . . . Stealth | -11 -10 -10 --------- Run | Yrd Mat Sub Distress Signals 2 | . 2 . Communications Jammed . | . . . Distress Signals . | . . . Times Spotted 38 | . 22 16 Peak Tracking Total 4 | . 4 2 Tactical Retreats 1 | . 1 . Traps | -11 -10 -10 ------- Run | Yrd Mat Sub Traps Triggered 2 | . 1 1 Indirectly . | . . . Trap Hack Attempts . | . . . Triggered . | . . . Disarmed . | . . . Reprogrammed . | . . . Reused . | . . . Traps Extracted . | . . . Installed . | . . . Triggered . | . . . Most Traps Carried 2 | . . 2 Machines | -11 -10 -10 ---------- Run | Yrd Mat Sub Machines Disabled . | . . . Max in Single Turn . | . . . Machines Repaired . | . . . Machines Dismantled . | . . . Machines Sabotaged . | . . . Overloaded Fab Kills . | . . . Hacking | -11 -10 -10 --------- Run | Yrd Mat Sub Machines Accessed 6 | . 5 1 Terminals 4 | . 4 . Fabricators . | . . . Repair Stations . | . . . Recycling Units 1 | . 1 . Scanalyzers . | . . . Garrison Access . | . . . Total Hacks 24 | . 19 5 Successful 11 | . 6 5 Failed 13 | . 13 . Catastrophic 1 | . 1 . Database Lockouts . | . . . Manual 9 | . 9 . Terminals 16 | . 16 . Fabricators . | . . . Repair Stations . | . . . Recycling Units 3 | . 3 . Scanalyzers . | . . . Garrison Access . | . . . Terminal Hacks 9 | . 4 5 Record 5 | . . 5 Robot Analysis 2 | . 2 . Dispatch Records 1 | . 1 . Hauler Manifests 1 | . 1 . Fabricator Hacks . | . . . Repair Station Hacks . | . . . Recycling Unit Hacks 2 | . 2 . Report Inventory 1 | . 1 . Retrieve Components 1 | . 1 . Scanalyzer . | . . . Garrison Access Hacks . | . . . Unauthorized Hacks . | . . . Terminals . | . . . Fabricators . | . . . Repair Stations . | . . . Recycling Units . | . . . Scanalyzers . | . . . Garrison Access . | . . . Data Cores Recovered . | . . . Used . | . . . Hacking Detections 4 | . 4 . Full Trace Events . | . . . Feedback Events . | . . . Feedback Blocked . | . . . Robot Schematics Acquired . | . . . Robots Built . | . . . Authchips . | . . . Time . | . . . Total Robot Build Rating . | . . . Part Schematics Acquired . | . . . Parts Built . | . . . Authchips . | . . . Time . | . . . Total Part Build Rating . | . . . Part Studies Acquired . | . . . Parts Repaired . | . . . Time . | . . . Parts Recycled . | . . . Recycled Matter . | . . . Retrieved Matter . | . . . Retrieved Components 2 | . 2 . Parts Scanalyzed . | . . . Part Schematics Acquired . | . . . Parts Damaged . | . . . Bothacking | -11 -10 -10 ------------ Run | Yrd Mat Sub Used RIF Installer . | . . . Robots Hacked . | . . . Non-combat . | . . . Combat . | . . . Robot Hacks Applied . | . . . Relay Couplers Released . | . . . Fabnet Peak Effective % . | . . . Robots Rewired . | . . . Allies Hacked . | . . . Hacks Repelled . | . . . Allies | -11 -10 -10 -------- Run | Yrd Mat Sub Total Allies . | . . . Largest Group . | . . . Highest-Rated Group . | . . . Highest-Rated Ally . | . . . Total Orders . | . . . Ally Attacks . | . . . Total Damage . | . . . Kills . | . . . Allies Corrupted . | . . . Allies Melted . | . . . Intel | -11 -10 -10 ------- Run | Yrd Mat Sub Active Infowar (turns) 1769 | . 380 1389 Terrain 1769 | . 380 1389 Robot Analysis Total 2 | . 2 . Derelict Logs Recovered . | . . . Drone Launches . | . . . Drone Recoveries . | . . . Exploration | -11 -10 -10 ------------- Run | Yrd Mat Sub Turns Passed 2332 | 41 902 1389 Spaces Moved 1388 | 36 454 898 Core 1 | 1 . . Treads . | . . . Legs . | . . . Wheels 1387 | 35 454 898 Hover . | . . . Flight . | . . . Fastest Speed 50 | 50 90 119 Average Speed 128 | 89 127 130 Slowest Speed 200 | 100 200 150 Overloaded Moves . | . . . Propulsion Burnouts . | . . . Robots Hopped . | . . . Potential Cave-ins . | . . . Cave-ins Triggered . | . . . Exploration Rate (%) 41 | 4 59 60 Regions Visited 2 Branch Regions 1 Pre-discovered Areas 1 | . . 1 Known Exits Taken . | . . . Unknown Exits Taken 2 | 1 1 . Scrap Searched 11 | . . 11 Spaces Dug . | . . . Terrain Destroyed 67 | . 38 29 Melee . | . . . Projectile 4 | . . 4 AOE 63 | . 38 25 Terrain Rammed . | . . . Walls Destroyed . | . . . Machines Disabled . | . . . Actions | -11 -10 -10 --------- Run | Yrd Mat Sub Total 1766 | 41 692 1033 Wait 191 | . 147 44 Move 1386 | 35 453 898 Hop . | . . . Pick Up 40 | . 22 18 Fast Attach 16 | 6 8 2 Attach 4 | . . 4 Detach . | . . . Swap 18 | . 6 12 Drop 24 | . 11 13 Fire 87 | . 45 42 Melee . | . . . Ram . | . . . Kick . | . . . Crush . | . . . Escape Stasis . | . . . Rewire . | . . . Trap . | . . . Miscellaneous . | . . . Route ------- -11/Scrapyard -10/Materials (discovered 5 exits: [*Mat x2] / [*Min x2] / *Sub) -10/Subcaves (discovered 1 exit: [*Mat]) History --------- Turn | Location | Event 16 | -11/Scrapyard | Discovered new exit (range 14) 42 | -11/Scrapyard | Entered Materials 219 | -10/Materials | Discovered new exit (range 16) 290 | -10/Materials | Discovered new exit (range 10) 313 | -10/Materials | Build established: Mutant 452 | -10/Materials | Discovered new exit (range 10) 472 | -10/Materials | Discovered new exit (range 8) 542 | -10/Materials | Derelicts attacked the area 544 | -10/Materials | Discovered new exit (range 11) 944 | -10/Materials | Entered Subcaves 945 | -10/Subcaves | Approached by a straggling Scientist 1041 | -10/Subcaves | Disturbed a concealed Subdweller 1046 | -10/Subcaves | Core integrity fell below 50% 1147 | -10/Subcaves | Visited Clippyterm 1151 | -10/Subcaves | Learned location of Deep Caves (-6) 1151 | -10/Subcaves | Learned 40 Factory zone layouts 1240 | -10/Subcaves | Build established: Scavenger-Mutant 1304 | -10/Subcaves | Core integrity fell below 20% 1331 | -10/Subcaves | Lost 3 parts (2p1n) 1387 | -10/Subcaves | Discovered new exit (range 14) 1583 | -10/Subcaves | Build established: Mutant 1779 | -10/Subcaves | Found Prototype Leg 1853 | -10/Subcaves | Shifting Twisted Machinery released Scrap Shield 1873 | -10/Subcaves | Shifting Twisted Machinery released Sub. Laser 2066 | -10/Subcaves | A swath of the cavern ceiling suddenly collapsed 2333 | -10/Subcaves | Destroyed by 1T-PB4(R) with Subdweller Laser Last Messages --------------- 02028_ Searching scrap... 02028_ Found Sub. Machine Gun. 02028_ Found 65 Matter. 02029_ Acquired 65 matter. 02031_ Searching scrap... 02031_ Found Riot Gun. 02031_ Found 54 Matter. 02032_ Acquired 54 matter. 02035_ Searching scrap... 02035_ Found Sub. Shrapnel Launcher. 02035_ Found Sub. Machine Gun. 02035_ Found 67 Matter. 02036_ Acquired 67 matter. 02039_ Acquired Sub. Shrapnel Launcher. A swath of the cavern ceiling suddenly collapses. 02244_ Dropped Shotgun. 02245_ Acquired Mak. System Shield. 02316_ Acquired 15 matter. 02331_ Ion Engine destroyed. Map ----- +----------------------------------------------------+ | ????????????????????# #?? ##?????????? | | ##?????????????#????????## #### #??????#??? | | ????#????????????????????# ##### #?????????? | | ????????????????????????## # #?#???????? | | ??????????????#??????#### # ##?????????? | | ?????###??????#?????#?# ""# ### ##??????#???? | | ###### ##?????????????## ##""#### ####????????? | | ###????#?#?????#""#"#"## #????????? | | ##????????#??# ##""### ##[## #????????? | | ## #########??"# "#"#######"["# ##???????? | | ## ### # ### # "###?# #" ""# #???#????? | | ### """###"##?? # #["[## #??#????#? | | ###### [###"" "# ??? #"" # #????#???? | | ????# # ###### # "####### ##????????? | | ???# ## ####?##?#"" " # #""""" #?????????? | | ##?## #### #??????###"# ###"""#####?????????? | | ### #### #?#?#????####??#"#" #??????????? | | ? ######## ##??#######?????#"## #??????????? | | ## ????## #?## # #?##???#" #????#?????? | | # ####?# ## ##?###?## ###????#?????? | | #### # % ???????# #????????????? | | ## ## #??#????# #????????????? | | # ##?????######????????????? | | ## # ##???? #?????#?????????? | | #### ## #??? ?????????????????? | | [ #### ## # @#??? #?????#?#?????????? | | ## ### #### %##?? ##?? #???????????? | | ####?# ##?##R ##??# ## #???????????? | | #???## #### #?## #????????????? | | ## #???# # #% ### #?????????????? | | ####??### #??????????????? | | #### # # ###"" ###??????????????? | | ### ###?# ### ##????#???????????? | | ### #?#" #?## ##?????????????????? | | #?# ### ## #?#"" #???##??????????????????? | | ## ##?## ???##??##?#""" ??????????? ???????????? | | ?####???#????? ?????#" " #?????"????????????????? | | ????????????? ??????#" "" ??????????????????????? | | ???????????????????? "" #?????????????????????? | | ?????????????????? ? "" ?????????????????????? | | ?????????#???? ????? " ????????????????????? | | ???????????????????? ? "??????????????????????? | | ??????????#????????? ? ??????????????????????? | | ????????????????????"?? ?????????????????????????? | | ??????????????????????? ?????????????????????????? | | ?????????????????????????????????????????????????? | | ?????????????????????????????????????????????????? | | ?????????????????????????????????????????????????? | | ?????????????????????????????????????????????????? | | ?????????????????????????????????????????????????? | +----------------------------------------------------+ Best States ------------- Heat Dissipation 25 Energy Generation 10 Energy Capacity 250 Matter Stores 300 Matter Capacity 300 Sight Range 16 Terrain Scan Range 14 Terrain Scan Density 10 Evasion (%) 42 Authchip Count 1 Item Schematics ----------------- None Robot Schematics ------------------ None Fabricated ------------ Nothing Repaired ---------- Nothing Studied --------- None Alien Tech Used ----------------- None Achievements -------------- None Challenges ------------ None Game ------ Seed MomentumControlLegs Manual? 0 Play Time 00:21:50 Cumulative 160.9 hours Start 2025.12.07 @ 19:50:11 End 2025.12.07 @ 20:06:50 Sessions 1 Manual Loads 0 Difficulty Rogue Special Mode None Game No. 89 Rogue 89 Adventurer 0 Explorer 0 Win Type - Total 1 Types 1/0/0/0/0/0/0/0/0/0 Lore% 69 Gallery% 62 Achievement% 51 Wizard Run 0 Options --------- Layout 1 ASCII 0 Keyboard 0 Movement Mouse Keybinds 0 Fullscreen 2 Font 32/SmallcapsGlow Map View 50x35 Zoom Use 0% Tactical HUD 1 Map Filters NONE Filters NONE Steam 1 RUN: 1341eeb7-2460-44e9-9532-f1ef34b07048